lending/lending_fUSD_20240824
["ID","MTS","AMOUNT","RATE_DAILY","PERIOD"]
[335853786,1724532863341,-150.0,0.00029062,120]
[335853787,1724532863365,-150.0,0.00029075,120]
[335853788,1724532863390,-150.0,0.00029084,120]
[335853789,1724532863414,-150.0,0.00029108,120]
[335853790,1724532863438,-150.0,0.0002917,120]
[335853791,1724532863491,-150.0,0.00029241,120]
[335853792,1724532863515,-150.0,0.00029272,120]
[335853793,1724532863539,-150.0,0.00029307,120]
[335853794,1724532863563,-150.0,0.00029363,120]
[335853795,1724532863586,-150.0,0.00029365,120]
[335853796,1724532863609,-150.0,0.00029376,120]
[335853797,1724532863632,-150.0,0.00029388,120]
[335853798,1724532863656,-150.0,0.00029394,120]
[335853799,1724532863680,-150.0,0.00029411,120]
[335853800,1724532863705,-150.0,0.00029437,120]
[335853801,1724532863729,-150.0,0.00029493,120]
[335853802,1724532863751,-1215.65,0.000295,30]
[335853803,1724532863774,-150.0,0.00029506,120]
[335853804,1724532863798,-150.0,0.00029574,120]
[335853805,1724532863821,-150.0,0.00029654,120]
[335853806,1724532863843,-150.0,0.00029669,120]
[335853807,1724532863866,-150.0,0.0002971,120]
[335853808,1724532863891,-150.0,0.00029724,120]
[335853809,1724532863914,-1600.0,0.00029748,31]
[335853810,1724532863938,-1000.0,0.000298,120]
[335853811,1724532863961,-150.0,0.00029832,120]
[335853812,1724532863984,-150.0,0.00029833,120]
[335853813,1724532864008,-150.0,0.00029844,120]
[335853814,1724532864032,-150.0,0.00029855,120]
[335853815,1724532864056,-150.0,0.00029869,120]
[335853816,1724532864079,-2659.0,0.00029898,32]
[335853817,1724532864104,-2611.36,0.000299,31]
[335853818,1724532864129,-2611.36,0.000299,31]
[335853819,1724532864154,-2611.36,0.000299,31]
[335853820,1724532864178,-2611.36,0.000299,31]
[335853821,1724532864202,-2611.36,0.000299,31]
[335853822,1724532864226,-2611.36,0.000299,31]
[335853823,1724532864249,-2611.36,0.000299,31]
[335853824,1724532864400,-2611.36,0.000299,31]
[335853825,1724532864426,-2611.36,0.000299,31]
[335853826,1724532864450,-2611.36,0.000299,31]
[335853827,1724532864476,-2611.36,0.000299,31]
[335853828,1724532864500,-2611.36,0.000299,31]
[335853829,1724532864529,-2611.36,0.000299,31]
[335853830,1724532864555,-2611.36,0.000299,31]
[335853831,1724532864580,-2611.36,0.000299,31]
[335853832,1724532864605,-2611.36,0.000299,31]
[335853833,1724532864632,-2611.36,0.000299,31]
[335853834,1724532864658,-2611.36,0.000299,31]
[335853835,1724532864683,-2611.36,0.000299,31]
[335853836,1724532864708,-2611.36,0.000299,31]
[335853837,1724532864734,-2611.36,0.000299,31]
[335853838,1724532864759,-2611.36,0.000299,31]
[335853839,1724532864785,-2611.36,0.000299,31]
[335853840,1724532864811,-2611.36,0.000299,31]
[335853841,1724532864835,-150.0,0.00029904,120]
[335853842,1724532864859,-150.0,0.00029912,120]
[335853843,1724532864882,-150.0,0.00029923,120]
[335853844,1724532864907,-150.0,0.00029927,120]
[335853845,1724532864935,-50000.0,0.0003,30]
[335853846,1724532864962,-151.0,0.0003,120]
[335853847,1724532864985,-987.43187935,0.0003,30]
[335853848,1724532865008,-151.0,0.0003,120]
[335853849,1724532865031,-1000.0,0.0003,120]
[335853850,1724532865054,-2000.0,0.0003,120]
[335853851,1724532865077,-163.51832623,0.0003,120]
[335853852,1724532865101,-1800.0,0.0003,31]
[335853853,1724532865124,-3108.0,0.0003,30]
[335853854,1724532865148,-500.0,0.0003,120]
[335853855,1724532865171,-300.0,0.0003,60]
[335853856,1724532865193,-1000.0,0.0003,120]
[335853857,1724532865216,-7231.44601413,0.0003,120]
[335853858,1724532865239,-1000.0,0.0003,120]
[335853859,1724532865260,-624.81779714,0.0003,120]
[335853860,1724532865290,-150.0,0.00030007,120]
[335853861,1724532865312,-150.0,0.00030009,120]
[335853862,1724532865336,-150.0,0.00030034,120]
[335853863,1724532865359,-150.0,0.00030047,120]
[335853864,1724532865382,-150.0,0.00030103,120]
[335853865,1724532865405,-200.0,0.00030137,60]
[335853866,1724532865428,-150.0,0.00030166,120]
[335853867,1724532865450,-150.0,0.00030185,120]
[335853868,1724532865474,-150.0,0.00030331,120]
[335853869,1724532865497,-150.0,0.00030343,120]
[335853870,1724532865520,-150.0,0.00030378,120]
[335853871,1724532865543,-150.0,0.00030385,120]
[335853872,1724532865566,-150.0,0.00030416,120]
[335853873,1724532865588,-1000.0,0.000305,30]
[335853874,1724532865611,-150.0,0.00030561,120]
[335853875,1724532865642,-250.0,0.000308,30]
[335853876,1724532865664,-151.0,0.00030959,120]
[335853877,1724532865691,-50000.0,0.00031,31]
[335853878,1724532865713,-1800.0,0.00031,32]
[335853879,1724532865736,-1000.0,0.00031,120]
[335853880,1724532865758,-1000.0,0.00031,120]
[335853881,1724532865781,-2326.91,0.00031073,30]
[335853882,1724532865804,-3621.76519224,0.000315,30]
[335853883,1724532865827,-151.0,0.00031918,120]
[335853884,1724532865852,-50000.0,0.00032,32]
[335853885,1724532865879,-1800.0,0.00032,33]
[335853886,1724532865902,-2000.0,0.00032,120]
[335853887,1724532865924,-1000.0,0.00032,30]
[335853888,1724532865947,-333.33333333,0.00032,120]
[335853889,1724532865970,-1265.54,0.00032,120]
[335853890,1724532865993,-1000000.0,0.00032,60]
[335853891,1724532866016,-1000.0,0.00032,120]
[335853892,1724532866039,-60000.0,0.00032,60]
[335853893,1724532866061,-1000.0,0.00032,30]
[335853894,1724532866085,-790.53903336,0.00032,120]
[335853895,1724532866108,-696.34603101,0.0003205,120]
[335853896,1724532866132,-1000.0,0.000325,120]
[335853897,1724532866155,-5453.0,0.000327,35]
[335853898,1724532866178,-2632.98,0.00032876,120]
[335853899,1724532866202,-2632.98,0.00032876,120]
[335853900,1724532866226,-2632.98,0.00032876,120]
[335853901,1724532866249,-2632.98,0.00032876,120]
[335853902,1724532866275,-2632.98,0.00032876,120]
[335853903,1724532866299,-2632.98,0.00032876,120]
[335853904,1724532866322,-2632.98,0.00032876,120]
[335853905,1724532866344,-2632.98,0.00032876,120]
[335853906,1724532866367,-2632.98,0.00032876,120]
[335853907,1724532866392,-2632.98,0.00032876,120]
[335853908,1724532866414,-2632.98,0.00032876,120]
[335853909,1724532866437,-2632.98,0.00032876,120]
[335853910,1724532866459,-2632.98,0.00032876,120]
[335853911,1724532866485,-2632.98,0.00032876,120]
[335853912,1724532866509,-2632.98,0.00032876,120]
[335853913,1724532866532,-2632.98,0.00032876,120]
[335853914,1724532866555,-2632.98,0.00032876,120]
[335853915,1724532866577,-2632.98,0.00032876,120]
[335853916,1724532866600,-2632.98,0.00032876,120]
[335853917,1724532866622,-2632.98,0.00032876,120]
[335853918,1724532866645,-2632.98,0.00032876,120]
[335853919,1724532866668,-2632.98,0.00032876,120]
[335853920,1724532866693,-2632.98,0.00032876,120]
[335853921,1724532866716,-2633.12081652,0.00032876,120]
[335853922,1724532866738,-200.0,0.00032877,60]
[335853923,1724532866761,-151.0,0.00032877,120]
[335853924,1724532866783,-6042.63466713,0.00032877,30]
[335853925,1724532866806,-1060.98815884,0.00032877,30]
[335853926,1724532866830,-1000.0,0.0003289,120]
[335853927,1724532866852,-2223.11066879,0.0003289,90]
[335853928,1724532867002,-2700.78519022,0.00032948,34]
[335853929,1724532867028,-50000.0,0.00033,33]
[335853930,1724532867051,-160.79452252,0.00033,120]
[335853931,1724532867074,-1800.0,0.00033,34]
[335853932,1724532867098,-1000.0,0.00033,120]
[335853933,1724532867122,-1000000.0,0.00033,60]
[335853934,1724532867145,-300.0,0.00033,120]
[335853935,1724532867168,-13558.83287487,0.00033,120]
[335853936,1724532867191,-500000.0,0.00033,60]
[335853937,1724532867213,-12969.28728779,0.00033,30]
[335853938,1724532867236,-501.42562153,0.00033,60]
[335853939,1724532867259,-1000.0,0.00033,120]
[335853940,1724532867283,-23212.24,0.00033151,120]
[335853941,1724532867309,-2611.36,0.000335,31]
[335853942,1724532867333,-2611.36,0.000335,31]
[335853943,1724532867357,-2611.36,0.000335,31]
[335853944,1724532867382,-2611.36,0.000335,31]
[335853945,1724532867406,-2611.36,0.000335,31]
[335853946,1724532867430,-2611.36,0.000335,31]
[335853947,1724532867455,-2611.36,0.000335,31]
[335853948,1724532867481,-2611.36,0.000335,31]
[335853949,1724532867506,-2611.36,0.000335,31]
[335853950,1724532867530,-2611.36,0.000335,31]
[335853951,1724532867554,-2611.36,0.000335,31]
[335853952,1724532867578,-2611.36,0.000335,31]
[335853953,1724532867600,-1000.0,0.000337,30]
[335853954,1724532867624,-151.0,0.00033836,120]
[335853955,1724532867647,-50000.0,0.00034,34]
[335853956,1724532867670,-1800.0,0.00034,35]
[335853957,1724532867693,-4186.68102548,0.00034,120]
[335853958,1724532867715,-2000.0,0.00034,120]
[335853959,1724532867738,-61593.61582986,0.00034,60]
[335853962,1724532872852,-938406.38417014,0.00034,60]
[335853963,1724532872878,-1900.01873521,0.00034,120]
[335853964,1724532872904,-2043.35597019,0.00034,30]
[335853965,1724532872930,-500000.0,0.00034,60]
[335853966,1724532872955,-1000.0,0.00034,120]
[335853967,1724532872981,-2253.23,0.000342,30]
[335853968,1724532873008,-2326.91,0.00034234,30]
[335853969,1724532873034,-6042.63466713,0.00034377,30]
[335853970,1724532873061,-6900.0,0.000345,120]
[335853971,1724532873089,-1600.0,0.00034748,60]
[335853972,1724532873116,-151.0,0.00034795,120]
[335853973,1724532873143,-2367.640084,0.000348,30]
[335853974,1724532873169,-75680.0,0.0003489,60]
[335853975,1724532873196,-500.0,0.0003489,120]
[335853976,1724532873222,-4405.2027948,0.000349,120]
[335853977,1724532873249,-52290.25619161,0.00034999,120]
[335853978,1724532873278,-50000.0,0.00035,35]
[335853979,1724532873304,-2000.0371865,0.00035,120]
[335853980,1724532873326,-20000.0,0.00035,30]
[335853981,1724532873349,-150.0,0.00035,30]
[335853982,1724532873572,-4886.8563159,0.00035,120]
[335853983,1724532873617,-2340.17644318,0.00035,120]
[335853984,1724532873641,-413.0,0.00035,120]
[335853985,1724532873664,-3156.853445,0.00035,30]
[335853986,1724532873687,-300.0,0.00035,120]
[335853987,1724532873710,-5000.0,0.00035,120]
[335853988,1724532873732,-5000.0,0.00035,120]
[335853989,1724532873755,-5000.0,0.00035,120]
[335853990,1724532873778,-5000.0,0.00035,60]
[335853991,1724532873801,-10409.0,0.00035,120]
[335853992,1724532873824,-500000.0,0.00035,60]
[335853993,1724532873847,-1000.0,0.00035,120]
[335853994,1724532873869,-682.45594523,0.00035,90]
[335853995,1724532873892,-155.527176,0.00035,30]
[335853996,1724532873916,-155.527176,0.00035,30]
[335853997,1724532873939,-1800.0,0.00035,36]
[335853998,1724532873963,-1000.0,0.00035,30]
[335853999,1724532873986,-1000000.0,0.00035,60]
[335854000,1724532874009,-3000.0371875,0.00035,30]
[335854001,1724532874032,-300.0,0.00035,60]
[335854002,1724532874055,-7981.59144975,0.00035,120]
[335854003,1724532874077,-5291.87733808,0.00035,120]
[335854004,1724532874102,-1000.0,0.00035,30]
[335854005,1724532874125,-5540.20184058,0.000351,120]
[335854006,1724532874148,-5000.0,0.0003519,120]
[335854007,1724532874170,-3946.066807,0.000355,30]
[335854008,1724532874193,-2762.44,0.000355,120]
[335854009,1724532874215,-4735.280168,0.000356,30]
[335854010,1724532874237,-200.30700059,0.00035616,60]
[335854011,1724532874259,-4735.280168,0.000357,30]
[335854012,1724532874282,-151.0,0.00035753,120]
[335854013,1724532874304,-5524.49353,0.000358,30]
[335854014,1724532874326,-33842.58844912,0.000358,60]
[335854015,1724532874348,-4735.280168,0.0003582,30]
[335854016,1724532874371,-80000.0,0.0003587,40]
[335854017,1724532874394,-6042.63466713,0.00035877,30]
[335854018,1724532874418,-50000.0,0.00036,36]
[335854019,1724532874440,-1800.0,0.00036,37]
[335854020,1724532874463,-557094.85492536,0.00036,60]
[335854021,1724532880806,-442905.14507464,0.00036,60]
[335854022,1724532880830,-500000.0,0.00036,60]
[335854023,1724532880854,-151.0,0.00036,120]
[335854024,1724532880877,-200.03,0.00036,120]
[335854025,1724532880903,-2000.0,0.00036,120]
[335854026,1724532880925,-1000.0,0.00036,120]
[335854027,1724532880948,-4101.0163002,0.00036,120]
[335854028,1724532880970,-6163.356028,0.00036,120]
[335854029,1724532880993,-170.02930203,0.00036,120]
[335854030,1724532881017,-1000.0,0.00036,120]
[335854031,1724532881040,-5998.3,0.00036114,54]
[335854032,1724532881063,-29653.0,0.0003645,50]
[335854033,1724532881085,-26000.0,0.000365,30]
[335854034,1724532881108,-500000.0,0.000365,60]
[335854035,1724532881132,-151.0,0.00036712,120]
[335854036,1724532881154,-1877.05147056,0.000368,30]
[335854037,1724532881177,-3411.2202779,0.000368,30]
[335854038,1724532881199,-155.527176,0.000368,35]
[335854039,1724532881222,-2396.0129463,0.0003689,120]
[335854040,1724532881246,-50000.0,0.00037,37]
[335854041,1724532881268,-150.0,0.00037,30]
[335854042,1724532881290,-1000.0,0.00037,30]
[335854043,1724532881313,-1000000.0,0.00037,60]
[335854044,1724532881335,-333.33333333,0.00037,120]
[335854045,1724532881358,-900.0,0.00037,38]
[335854046,1724532881381,-6000.0,0.00037,120]
[335854047,1724532881405,-1000.0,0.00037,120]
[335854048,1724532881428,-662562.5,0.00037,60]
[335854049,1724532881450,-4662.56146768,0.00037035,40]
[335854050,1724532881474,-9309.97280565,0.00037035,40]
[335854051,1724532881499,-5441.24810387,0.00037035,40]
[335854052,1724532881527,-5518.62875621,0.00037035,40]
[335854053,1724532881693,-875.22990387,0.00037035,40]
[335854054,1724532881720,-6042.63466713,0.00037377,30]
[335854055,1724532881745,-2326.91,0.00037395,30]
[335854056,1724532881771,-26000.0,0.000375,60]
[335854057,1724532881794,-1000.0,0.000375,120]
[335854058,1724532881817,-833.33,0.00037671,120]
[335854059,1724532881839,-151.0,0.00037671,120]
[335854060,1724532881862,-295.80772665,0.00037999,120]
[335854061,1724532881889,-50000.0,0.00038,38]
[335854062,1724532881913,-200488.3782705,0.00038,120]
[335854063,1724532881935,-2000.0,0.00038,120]
[335854064,1724532881958,-6201.7607,0.00038,90]
[335854065,1724532881980,-347299.3984,0.00038,90]
[335854066,1724532882002,-3298.76094873,0.00038,30]
[335854067,1724532882024,-755.68782932,0.00038,120]
[335854068,1724532882048,-78220.16851143,0.00038,60]
[335854069,1724532885954,-921779.83148857,0.00038,60]
[335854070,1724532885978,-2000.0,0.00038,120]
[335854071,1724532886003,-1000.0,0.00038,120]
[335854072,1724532886026,-375.5506,0.00038,90]
[335854073,1724532886049,-269.4568,0.00038,90]
[335854074,1724532886072,-1000.0,0.00038,120]
[335854075,1724532886096,-2238.87368151,0.00038,120]
[335854076,1724532886120,-5539.35569401,0.00038,120]
[335854077,1724532886145,-833.33,0.00038356,120]
[335854078,1724532886170,-247.65944898,0.00038356,60]
[335854079,1724532901324,-193.0,0.00029188,30]
[335854080,1724532901347,-193.0,0.00029188,30]
[335854081,1724532901369,-193.0,0.00029188,30]
[335854082,1724532901391,-200.0,0.00029188,30]
[335854083,1724532901424,-2077.38138149,0.00029188,60]
[335854084,1724532901449,-1000.0,0.00029188,30]
[335854085,1724532901472,-901.23057863,0.00029188,30]
[335854086,1724532901500,-2000.0,0.00029188,120]
[335854087,1724532901524,-29472.58244918,0.00029188,30]
[335854088,1724532901547,-160.0,0.00029188,30]
[335854089,1724532901571,-1000.0,0.00029188,30]
[335854090,1724532901594,-1929.01481126,0.00029188,90]
[335854091,1724532901617,-3035.94007538,0.00029188,30]
[335854092,1724532901640,-530.08747157,0.00029188,60]
[335854093,1724532901666,-2159.13568334,0.00029188,120]
[335854094,1724532901690,-1533.82025799,0.00029188,30]
[335854095,1724532901713,-837.50793636,0.00029188,30]
[335854096,1724532901736,-1000.0,0.00029188,30]
[335854097,1724532901758,-2647.2039579,0.00029188,30]
[335854098,1724532901781,-1622.81420331,0.00029188,120]
[335854099,1724532901804,-1182.03460557,0.00029188,120]
[335854100,1724532901828,-253.52295926,0.00029188,30]
[335854101,1724532901851,-2500.0,0.00029188,30]
[335854102,1724532901873,-2959.30749698,0.00029188,120]
[335854103,1724532901899,-208.0,0.00029188,30]
[335854104,1724532901922,-820.34836206,0.00029188,30]
[335854105,1724532901944,-1200.0,0.00029188,120]
[335854106,1724532901968,-828.19467165,0.00029188,30]
[335854107,1724532901991,-892.08376152,0.00029188,30]
[335854108,1724532902014,-1926.04305951,0.00029188,60]
[335854109,1724532902036,-921.60117309,0.00029188,30]
[335854110,1724532902058,-503.0,0.00029188,120]
[335854111,1724532902081,-1152.57097741,0.00029188,31]
[335854112,1724532902105,-948.22842815,0.00029188,120]
[335854113,1724532902128,-1403.34018322,0.00029188,120]
[335854114,1724532902152,-256.38352039,0.00029188,120]
[335854115,1724532902175,-678.30079664,0.00029188,120]
[335854116,1724532902200,-1791.60029771,0.00029188,120]
[335854117,1724532902223,-319.16667127,0.00029188,120]
[335854118,1724532902249,-620.22677146,0.00029188,120]
[335854119,1724532902273,-220.3546349,0.00029188,31]
[335854120,1724532902295,-3321.91214164,0.00029188,120]
[335854121,1724532902319,-154.3403364,0.00029188,120]
[335854122,1724532902344,-204.61541152,0.00029188,120]
[335854123,1724532902371,-591.72208176,0.00029188,120]
[335854124,1724532902395,-747.65734307,0.00029188,30]
[335854125,1724532902417,-310.20653594,0.00029188,120]
[335854126,1724532902440,-217.68873578,0.00029188,120]
[335854127,1724532902463,-286.74087597,0.00029188,120]
[335854128,1724532902491,-847.71576362,0.00029188,30]
[335854129,1724532902515,-353.13968435,0.00029188,120]
[335854130,1724532902543,-951.45470684,0.00029188,120]
[335854131,1724532902569,-156.29786725,0.00029188,120]
[335854132,1724532902594,-1221.79969222,0.00029188,120]
[335854133,1724532902616,-1934.01071961,0.00029188,120]
[335854134,1724532902639,-2399.96974361,0.00029188,120]
[335854135,1724532902665,-603.12308087,0.00029188,120]
[335854136,1724532902690,-288.56236341,0.00029188,31]
[335854137,1724532902716,-196.2776628,0.00029188,120]
[335854138,1724532902740,-1242.25599857,0.00029188,30]
[335854139,1724532902764,-1403.07095673,0.00029188,30]
[335854140,1724532902788,-2500.92195362,0.00029188,120]
[335854141,1724532902810,-1097.22175543,0.00029188,30]
[335854142,1724532902833,-756.0,0.00029188,120]
[335854143,1724532902856,-2573.61053618,0.00029188,120]
[335854144,1724532902878,-1065.46328842,0.00029188,120]
[335854145,1724532902901,-485.03801484,0.00029188,30]
[335854146,1724532902923,-3016.55062045,0.00029188,120]
[335854147,1724532902946,-200.34945645,0.00029188,120]
[335854148,1724532902971,-1000.0,0.00029188,60]
[335854149,1724532902994,-258.0,0.00029188,120]
[335854150,1724532903017,-1000.0,0.00029188,30]
[335854151,1724532903042,-1000.0,0.00029188,30]
[335854152,1724532903065,-1000.0,0.00029188,30]
[335854153,1724532903089,-1000.0,0.00029188,60]
[335854154,1724532903112,-1000.0,0.00029188,30]
[335854155,1724532903136,-1000.0,0.00029188,30]
[335854156,1724532903160,-1000.0,0.00029188,60]
[335854157,1724532903186,-50000.0,0.00029188,30]
[335854158,1724532903212,-50000.0,0.00029188,31]
[335854159,1724532903238,-50000.0,0.00029188,32]
[335854160,1724532903264,-50000.0,0.00029188,33]
[335854161,1724532903289,-50000.0,0.00029188,34]
[335854162,1724532903315,-50000.0,0.00029188,35]
[335854163,1724532903338,-906.15668049,0.00029188,120]
[335854164,1724532903509,-312.06443344,0.00029188,31]
[335854165,1724532903535,-1000.0,0.00029188,60]
[335854166,1724532903560,-1000.0,0.00029188,60]
[335854167,1724532903586,-1000.0,0.00029188,60]
[335854168,1724532903612,-1000.0,0.00029188,30]
[335854169,1724532903637,-20248.52642912,0.00029188,120]
[335854170,1724532903675,-152.28140721,0.00029188,30]
[335854171,1724532903703,-660.0,0.00029188,30]
[335854172,1724532903730,-20000.0,0.00029188,30]
[335854173,1724532903756,-19588.35535931,0.00029188,60]
[335854174,1724532903782,-50346.5520963,0.00029188,60]
[335854175,1724532903808,-3928.51979478,0.00029188,60]
[335854176,1724532903832,-13713.51285708,0.00029188,30]
[335854177,1724532903858,-486.3149992,0.00029188,60]
[335854178,1724532903883,-454.532136,0.00029188,30]
[335854179,1724532903908,-1000.0,0.00029188,30]
[335854180,1724532903933,-1000.0,0.00029188,30]
[335854181,1724532903958,-1000.0,0.00029188,30]
[335854182,1724532903982,-1000.0,0.00029188,30]
[335854183,1724532904007,-1000.0,0.00029188,30]
[335854184,1724532904032,-1000.0,0.00029188,30]
[335854185,1724532904057,-1000.0,0.00029188,30]
[335854186,1724532904081,-379.08048512,0.00029188,30]
[335854187,1724532904106,-1056.01309192,0.00029188,120]
[335854188,1724532904130,-488.47215002,0.00029188,30]
[335854189,1724532904155,-365.0720967,0.00029188,30]
[335854190,1724532904180,-2689.90802326,0.00029188,120]
[335854191,1724532904203,-168.6120827,0.00029188,120]
[335854192,1724532904228,-706.68405178,0.00029188,30]
[335854193,1724532904252,-3075.20686249,0.00029188,120]
[335854194,1724532904278,-5298.07494848,0.00029188,120]
[335854195,1724532904304,-199.6523956,0.00029188,30]
[335854196,1724532904330,-198.1048204,0.00029188,30]
[335854197,1724532904354,-3302.11189128,0.00029188,120]
[335854198,1724532904379,-336.81838658,0.00029188,30]
[335854199,1724532904403,-3035.29104516,0.00029188,120]
[335854200,1724532904428,-2531.30694263,0.00029188,120]
[335854201,1724532904453,-3774.5296933,0.00029188,30]
[335854202,1724532904481,-216.00744606,0.00029188,120]
[335854203,1724532904506,-195.22078541,0.00029188,30]
[335854204,1724532904532,-5858.48786414,0.00029188,120]
[335854205,1724532904557,-453.35410205,0.00029188,30]
[335854206,1724532904581,-5865.55618312,0.00029188,120]
[335854207,1724532904606,-255.70087122,0.00029188,30]
[335854208,1724532904631,-3544.81760821,0.00029188,90]
[335854209,1724532904660,-3340.81898636,0.00029188,120]
[335854210,1724532904687,-11062.45829981,0.00029188,120]
[335854211,1724532904714,-646.68397226,0.00029188,120]
[335854212,1724532904738,-289.44186984,0.00029188,30]
[335854213,1724532904761,-3181.47103064,0.00029188,120]
[335854214,1724532904789,-266.0,0.00029188,30]
[335854215,1724532904820,-2648.0,0.00029188,30]
[335854216,1724532904847,-890.64342934,0.00029188,120]
[335854217,1724532904874,-2000.0,0.00029188,120]
[335854218,1724532904904,-2000.0,0.00029188,120]
[335854219,1724532904929,-2000.0,0.00029188,120]
[335854220,1724532904952,-2000.0,0.00029188,120]
[335854221,1724532904989,-2000.0,0.00029188,120]
[335854222,1724532905029,-1164.0,0.00029188,120]
[335854223,1724532905059,-5530.51703813,0.00029188,120]
[335854224,1724532905095,-12444.93452855,0.00029188,120]
[335854225,1724532905120,-3415.0,0.00029188,120]
[335854226,1724532905151,-213.08608735,0.00029188,120]
[335854227,1724532905175,-2291.43375047,0.00029188,120]
[335854228,1724532905199,-943.44121435,0.00029188,120]
[335854229,1724532905234,-7793.0,0.00029188,30]
[335854230,1724532905264,-150875.18761259,0.00029188,30]
[335854231,1724532905288,-804.0552,0.00029188,30]
[335854232,1724532905313,-267.56277872,0.00029188,30]
[335854233,1724532905338,-894.01281235,0.00029188,120]
[335854234,1724532905362,-500.0,0.00029188,120]
[335854235,1724532905387,-500.0,0.00029188,120]
[335854236,1724532905412,-3131.25243505,0.00029188,120]
[335854237,1724532905438,-898.9618398,0.00029188,120]
[335854238,1724532905463,-5638.62758409,0.00029188,120]
[335854239,1724532905490,-201533.79,0.00029188,30]
[335854240,1724532905515,-31054.0,0.00029188,120]
[335854241,1724532905541,-1021.57272334,0.00029188,30]
[335854242,1724532905565,-250.21407139,0.00029188,120]
[335854243,1724532905590,-2093.0,0.00029188,120]
[335854244,1724532905615,-2822.0,0.00029188,120]
[335854245,1724532905640,-2490.15631932,0.00029188,60]
[335854246,1724532905667,-208.63649811,0.00029188,30]
[335854247,1724532905691,-193.0,0.00029188,30]
[335854248,1724532905715,-4656.0,0.00029188,120]
[335854249,1724532905740,-2000.60778983,0.00029188,120]
[335854250,1724532905764,-155.527176,0.00029188,40]
[335854251,1724532905788,-155.527176,0.00029188,40]
[335854252,1724532905812,-1000.0,0.00029188,30]
[335854253,1724532905836,-1000.0,0.00029188,30]
[335854254,1724532905861,-1000.0,0.00029188,30]
[335854255,1724532905886,-1000.0,0.00029188,30]
[335854256,1724532905912,-1000.0,0.00029188,30]
[335854257,1724532905938,-1000.0,0.00029188,30]
[335854258,1724532905963,-1000.0,0.00029188,30]
[335854259,1724532905988,-1000.0,0.00029188,30]
[335854260,1724532906013,-1000.0,0.00029188,30]
[335854261,1724532906038,-1000.0,0.00029188,30]
[335854262,1724532906062,-1000.0,0.00029188,30]
[335854263,1724532906087,-1000.0,0.00029188,30]
[335854264,1724532906114,-1000.0,0.00029188,30]
[335854265,1724532906145,-1000.0,0.00029188,30]
[335854266,1724532906172,-1000.0,0.00029188,30]
[335854267,1724532906196,-1000.0,0.00029188,30]
[335854268,1724532906352,-1000.0,0.00029188,30]
[335854269,1724532906377,-1000.0,0.00029188,30]
[335854270,1724532906403,-1000.0,0.00029188,30]
[335854271,1724532906428,-2238.87368151,0.00029188,120]
[335854272,1724532906453,-5539.35569401,0.00029188,120]
[335854273,1724532907254,155.0,0.00010009,2]
[335854274,1724532907459,271.111,0.00036647,30]
[335854275,1724532912114,896.15304501,0.00034868,30]
[335854276,1724532994848,768.83,9.907e-05,2]
[335854277,1724533033956,546.554705,0.00010009,2]
[335854278,1724533046802,840.0,9.899e-05,2]
[335854279,1724533122809,155.0,0.00010009,2]
[335854280,1724533160654,266.37,8.219e-05,2]
[335854281,1724533173061,160.0,0.00010009,2]
[335854282,1724533175225,155.0,0.00010009,2]
[335854283,1724533184238,560.14606525,0.00025,60]
[335854284,1724533185599,440.57970406,0.00010009,2]
[335854285,1724533190493,357.71830702,0.00010009,2]
[335854286,1724533193167,155.0,0.00010009,2]
[335854287,1724533196539,1725.0,0.00010009,2]